bitfinex/quotes_BTCUSD_20250324
["timestamp","ask_amount","ask_price","bid_price","bid_amount"]
[1742808894809,0.5759981,87442.0,87441.0,0.13376]
[1742808895789,0.5759981,87442.0,87441.0,0.13176]
[1742808896310,0.5759981,87442.0,87441.0,0.1320992]
[1742808896471,0.5759981,87442.0,87441.0,0.1300992]
[1742808896682,0.5769981,87442.0,87441.0,0.1300992]
[1742808897305,0.5759981,87442.0,87441.0,0.1300992]
[1742808898691,0.5759981,87442.0,87441.0,0.0003392]
[1742808898886,0.5759981,87442.0,87441.0,0.1300992]
[1742808910156,0.56145725,87442.0,87441.0,0.24967423]
[1742808910914,0.540159,87442.0,87441.0,0.24967423]
[1742808913026,0.540159,87442.0,87441.0,0.11991423]
[1742808913228,0.540159,87442.0,87441.0,0.24967423]
[1742808930240,0.540159,87442.0,87441.0,0.11991423]
[1742808930439,0.540159,87442.0,87441.0,0.24963423]
[1742808931885,0.55469985,87442.0,87441.0,0.0003392]
[1742808932075,0.60079985,87442.0,87441.0,2e-07]
[1742808935831,0.62217369,87442.0,87441.0,2e-07]
[1742808939586,0.60079985,87442.0,87441.0,2e-07]
[1742808942160,0.55469985,87442.0,87441.0,2e-07]
[1742808942574,0.55486955,87442.0,87441.0,2e-07]
[1742808953764,0.5403287,87442.0,87441.0,0.11957523]
[1742808957744,0.3001697,87442.0,87441.0,0.11957523]
[1742808958249,0.5288927,87442.0,87441.0,0.11957523]
[1742808958455,0.5403287,87442.0,87441.0,0.11957523]
[1742808959262,0.5403287,87442.0,87441.0,0.24925523]
[1742808975333,0.0001697,87442.0,87441.0,0.38155523]
[1742808975549,0.0001697,87442.0,87441.0,0.62171623]
[1742808976347,0.0001697,87442.0,87441.0,0.72171623]
[1742808977700,0.0001697,87442.0,87441.0,0.59203623]
[1742808977859,0.0001697,87442.0,87441.0,0.72167623]
[1742808978279,0.0001697,87442.0,87441.0,0.72767623]
[1742808978482,0.0001697,87442.0,87441.0,0.71924023]
[1742808978682,0.0001697,87442.0,87441.0,0.73067623]
[1742808980970,0.0001697,87442.0,87441.0,1.14880583]
[1742808987461,0.0001697,87442.0,87441.0,1.71776583]
[1742808989712,0.0001697,87442.0,87441.0,1.71772583]
[1742808990095,0.0001697,87442.0,87441.0,1.47756483]
[1742808990310,0.0001697,87442.0,87441.0,1.34526483]
[1742808990311,0.2403287,87442.0,87441.0,1.34526483]
[1742808990516,0.5403287,87442.0,87441.0,0.2386002]
[1742808990808,0.55486955,87442.0,87441.0,0.2386002]
[1742808991717,0.55486955,87442.0,87441.0,0.1296002]
[1742808992137,0.55486955,87442.0,87441.0,0.1316002]
[1742808995135,0.55486955,87442.0,87441.0,0.0020002]
[1742808995474,0.63126955,87442.0,87441.0,2e-07]
[1742808996082,0.540174,87436.0,87435.0,0.1296]
[1742808996969,0.55471485,87436.0,87435.0,0.1296]
[1742808998478,0.55571485,87436.0,87435.0,0.1296]
[1742808999063,0.55571485,87436.0,87435.0,0.1306]
[1742809001667,0.55571485,87436.0,87435.0,0.1309394]
[1742809002091,0.540191,87430.0,87429.0,0.0003392]
[1742809003263,0.540191,87430.0,87429.0,0.1299392]
[1742809003871,0.540191,87430.0,87429.0,0.1329392]
[1742809005753,0.55382264,87430.0,87429.0,0.1329392]
[1742809020004,0.56836349,87430.0,87429.0,0.1329392]
[1742809020174,0.56836349,87430.0,87425.0,2e-07]
[1742809020175,0.540202,87426.0,87425.0,2e-07]
[1742809020901,0.55811125,87426.0,87425.0,2e-07]
[1742809021876,0.5736521,87426.0,87425.0,0.0020002]
[1742809022332,0.5736521,87426.0,87425.0,2e-07]
[1742809022486,0.55574285,87426.0,87425.0,2e-07]
[1742809022669,0.55574285,87426.0,87425.0,0.0020002]
[1742809026167,0.55608225,87426.0,87425.0,0.0020002]
[1742809026306,0.55608225,87426.0,87425.0,0.12157523]
[1742809026307,0.5415414,87426.0,87425.0,0.12157523]
[1742809026513,0.0013394,87426.0,87425.0,0.44458023]
[1742809026719,0.0116057,87442.0,87434.0,0.24018]
[1742809026720,0.0001697,87442.0,87434.0,0.24018]
[1742809026918,0.0001697,87442.0,87434.0,0.43745503]
[1742809026919,0.0116057,87442.0,87434.0,0.43745503]
[1742809027196,0.01332852,87437.0,87434.0,0.43745503]
[1742809027396,0.01332852,87437.0,87434.0,0.53745503]
[1742809028092,0.0001697,87442.0,87434.0,0.53745503]
[1742809028093,0.0001697,87442.0,87434.0,0.95558463]
[1742809028279,0.0001697,87442.0,87434.0,0.99942033]
[1742809028489,0.0001697,87442.0,87434.0,1.00542033]
[1742809028691,0.0001697,87442.0,87434.0,1.00642033]
[1742809028977,0.0001697,87442.0,87434.0,1.00542033]
[1742809029176,0.0001697,87442.0,87434.0,1.00942033]
[1742809029563,0.0001697,87442.0,87434.0,0.99942033]
[1742809029782,0.0001697,87442.0,87434.0,1.00542033]
[1742809030928,0.0001697,87442.0,87434.0,1.01142033]
[1742809035585,0.0002097,87435.0,87434.0,1.01142033]
[1742809039943,0.0002097,87435.0,87434.0,1.58034033]
[1742809046098,0.0002097,87435.0,87434.0,1.70986033]
[1742809049231,0.0002097,87435.0,87434.0,1.71002993]
[1742809053378,0.0002097,87435.0,87434.0,1.58050993]
[1742809053587,0.0002097,87435.0,87434.0,1.71002993]
[1742809053791,0.0002097,87435.0,87434.0,1.58050993]
[1742809054012,0.0002097,87435.0,87434.0,1.71002993]
[1742809060420,0.0002097,87435.0,87434.0,1.74572206]
[1742809062272,0.0002097,87435.0,87434.0,1.62262206]
[1742809064553,0.0002097,87435.0,87434.0,1.49310206]
[1742809064879,0.0002097,87435.0,87434.0,1.62258206]
[1742809071153,0.228726,87441.0,87438.0,0.228732]
[1742809071354,0.228726,87441.0,87440.0,0.11957503]
[1742809071854,0.228726,87441.0,87440.0,0.15393603]
[1742809072068,0.2288927,87442.0,87440.0,0.15393603]
[1742809072255,0.2288927,87442.0,87441.0,0.11957503]
[1742809073280,0.2288927,87442.0,87441.0,0.15393503]
[1742809073490,0.2288927,87442.0,87441.0,0.15993503]
[1742809073700,0.2288927,87442.0,87441.0,0.16393503]
[1742809074113,0.2288927,87442.0,87441.0,0.73277503]
[1742809074309,0.2288927,87442.0,87441.0,0.83277503]
[1742809074919,0.2288927,87442.0,87441.0,1.25090463]
[1742809075363,0.2288927,87442.0,87441.0,1.38038463]
[1742809076465,0.0001697,87442.0,87441.0,1.60910963]
[1742809076672,0.0001697,87442.0,87441.0,1.38038463]
[1742809077243,0.0001697,87442.0,87441.0,1.60910963]
[1742809079135,0.0001697,87442.0,87441.0,1.38038463]
[1742809081128,0.2288927,87442.0,87441.0,1.38038463]
[1742809081541,0.0001697,87442.0,87441.0,1.60910963]
[1742809081836,0.0001697,87442.0,87441.0,1.62054563]
[1742809084480,0.0001697,87442.0,87441.0,1.70124563]
[1742809084680,0.0001697,87442.0,87441.0,1.73700132]
[1742809091755,0.0001697,87442.0,87441.0,1.60752132]
[1742809091970,0.0001697,87442.0,87441.0,1.73696132]
[1742809092752,0.0001697,87442.0,87441.0,1.52682132]
[1742809093006,0.0001697,87442.0,87441.0,1.49106563]
[1742809093272,0.0001697,87442.0,87441.0,1.62050563]
[1742809101623,0.2273585,87450.0,87447.0,0.228708]
[1742809101835,0.2273585,87450.0,87449.0,0.11957503]
[1742809102532,0.2273585,87450.0,87449.0,0.24901503]
[1742809102943,0.2273585,87450.0,87449.0,0.81785503]
[1742809103626,0.0491,87451.0,87449.0,0.91985503]
[1742809103855,0.0491,87451.0,87450.0,0.11957503]
[1742809104319,0.277799,87451.0,87450.0,0.11957503]
[1742809104651,0.0491,87451.0,87450.0,0.11957503]
[1742809105092,0.0491,87451.0,87450.0,0.21957503]
[1742809105873,0.228692,87454.0,87451.0,0.228697]
[1742809106032,0.01699025,87455.0,87453.0,0.228694]
[1742809106235,0.0453,87459.0,87454.0,0.34826603]
[1742809106236,0.086934,87458.0,87454.0,0.34826603]
[1742809106537,0.228689,87455.0,87454.0,0.11957503]
[1742809107047,0.24012,87456.0,87454.0,0.11957503]
[1742809107396,0.228689,87455.0,87454.0,0.11957503]
[1742809107933,0.228689,87455.0,87454.0,0.12057503]
[1742809108138,0.240123,87455.0,87454.0,0.21957503]
[1742809108773,0.240123,87455.0,87454.0,0.22357503]
[1742809108983,0.25666557,87455.0,87454.0,0.22357503]
[1742809109620,0.25666557,87455.0,87454.0,0.22457503]
[1742809109819,0.25666557,87455.0,87454.0,0.22357503]
[1742809110257,0.25666557,87455.0,87454.0,0.22457503]
[1742809112590,0.25666557,87455.0,87454.0,0.79341503]
[1742809117361,0.240123,87455.0,87454.0,0.79341503]
[1742809117565,0.228668,87463.0,87460.0,0.011433]
[1742809117767,0.1292,87467.0,87465.0,0.22866]
[1742809117970,0.1292,87467.0,87466.0,0.11957503]
[1742809118108,0.369289,87467.0,87466.0,0.11957503]
[1742809118322,0.38569227,87467.0,87466.0,0.11957503]
[1742809118737,0.38569227,87467.0,87466.0,0.24897503]
[1742809119712,0.38569227,87467.0,87466.0,0.24997503]
[1742809119911,0.38569227,87467.0,87466.0,0.34997503]
[1742809120338,0.30319227,87467.0,87466.0,0.34997503]
[1742809120711,0.30419227,87467.0,87466.0,0.34997503]
[1742809123146,0.30419227,87467.0,87466.0,0.22057503]
[1742809123364,0.01740327,87467.0,87466.0,0.57863503]
[1742809123688,0.01740327,87467.0,87466.0,0.59006803]
[1742809124448,0.01740327,87467.0,87466.0,0.34997503]
[1742809126786,0.24606027,87467.0,87466.0,0.34997503]
[1742809127206,0.24506027,87467.0,87466.0,0.34997503]
[1742809127389,0.24606027,87467.0,87466.0,0.34997503]
[1742809127535,0.01740327,87467.0,87466.0,0.57863503]
[1742809128083,0.01740327,87467.0,87466.0,0.57763503]
[1742809128284,0.01740327,87467.0,87466.0,0.57863503]
[1742809129446,0.001,87467.0,87466.0,0.59006803]
[1742809130329,0.001,87467.0,87466.0,0.34997503]
[1742809130749,0.001,87467.0,87466.0,0.57863503]
[1742809130970,0.01623531,87467.0,87466.0,0.57863503]
[1742809131161,0.01623531,87467.0,87466.0,0.58906803]
[1742809131368,0.0001696,87469.0,87468.0,0.228655]
[1742809131523,0.0001696,87469.0,87468.0,0.34823003]
[1742809131729,0.0001696,87469.0,87468.0,0.35966203]
[1742809132810,0.0001696,87469.0,87468.0,0.45966203]
[1742809133012,0.0001696,87469.0,87468.0,0.21957503]
[1742809133218,0.0001696,87469.0,87468.0,0.44823003]
[1742809133643,0.0001696,87469.0,87468.0,0.63770463]
[1742809134467,0.0001696,87469.0,87468.0,0.76706463]
[1742809135073,0.0001696,87469.0,87468.0,0.99571963]
[1742809135285,0.0001696,87469.0,87468.0,1.01015163]
[1742809143397,0.0001696,87469.0,87468.0,0.99871963]
[1742809144425,0.2288216,87469.0,87468.0,0.77006463]
[1742809144924,0.0001696,87469.0,87468.0,0.99871963]
[1742809145969,0.0001696,87469.0,87468.0,1.56743963]
[1742809147481,0.2288216,87469.0,87468.0,1.33878463]
[1742809148353,0.0001696,87469.0,87468.0,1.33878463]
[1742809149314,0.2288216,87469.0,87468.0,1.33878463]
[1742809149512,0.0001696,87469.0,87468.0,1.43807963]
[1742809149715,0.0001696,87469.0,87468.0,1.56739963]
[1742809150844,0.0001696,87469.0,87468.0,1.43807963]
[1742809151053,0.0001696,87469.0,87468.0,1.56739963]
[1742809152086,0.0001696,87469.0,87468.0,1.43807963]
[1742809152265,0.0001696,87469.0,87468.0,1.56739963]
[1742809153481,0.2288216,87469.0,87468.0,1.33874463]
[1742809153971,0.0001696,87469.0,87468.0,1.33874463]
[1742809154711,0.0001696,87469.0,87468.0,1.56739963]
[1742809157069,0.0001696,87469.0,87468.0,1.33874463]
[1742809158492,0.0001696,87469.0,87468.0,1.56739963]
[1742809162080,0.0001696,87469.0,87468.0,1.33874463]
[1742809162285,0.2402536,87469.0,87468.0,1.33874463]
[1742809162494,0.3207536,87469.0,87468.0,1.20942463]
[1742809162682,0.3207536,87469.0,87468.0,1.33874463]
[1742809163432,0.3207536,87469.0,87468.0,1.23874463]
[1742809165843,0.3207536,87469.0,87468.0,0.82061503]
[1742809167807,0.6207536,87469.0,87468.0,0.69129503]
[1742809168057,0.6207536,87469.0,87468.0,0.82061503]
[1742809168299,0.68249445,87469.0,87468.0,0.13232]
[1742809168775,0.70039495,87469.0,87468.0,0.12932]
[1742809169012,0.70039495,87469.0,87450.0,0.5690992]
[1742809169013,0.228699,87451.0,87450.0,0.5690992]
[1742809169265,0.315233,87451.0,87450.0,0.81799423]
[1742809170878,0.315233,87451.0,87450.0,0.82199423]
[1742809171852,0.315233,87451.0,87450.0,0.82299423]
[1742809172505,0.315233,87451.0,87450.0,0.81899423]
[1742809172718,0.315233,87451.0,87450.0,0.81799423]
[1742809172967,0.315233,87451.0,87450.0,0.81999423]
[1742809173164,0.316233,87451.0,87450.0,0.81999423]
[1742809173602,0.316233,87451.0,87450.0,0.81799423]
[1742809173826,0.316233,87451.0,87450.0,0.81899423]
[1742809174023,0.316233,87451.0,87450.0,0.68967423]
[1742809174148,0.316233,87451.0,87450.0,0.81899423]
[1742809174582,0.315233,87451.0,87450.0,0.81899423]
[1742809175412,0.316233,87451.0,87450.0,0.81899423]
[1742809181181,0.3164026,87451.0,87450.0,0.68967423]
[1742809181386,0.3164026,87451.0,87450.0,0.81899423]
[1742809182278,0.3164026,87451.0,87450.0,0.25023423]
[1742809187346,0.3164026,87451.0,87450.0,0.12091423]
[1742809187556,0.3164026,87451.0,87450.0,0.25023423]
[1742809189722,0.2413026,87451.0,87450.0,0.25023423]
[1742809209332,0.2413026,87451.0,87450.0,0.25019423]
[1742809211757,0.2413026,87451.0,87450.0,0.35019423]
[1742809213512,0.2413026,87451.0,87450.0,0.22091423]
[1742809213715,0.2413026,87451.0,87450.0,0.35019423]
[1742809221369,0.2388026,87451.0,87450.0,0.35019423]
[1742809222259,0.2388026,87451.0,87450.0,0.22091423]
[1742809222402,0.2388026,87451.0,87450.0,0.35019423]
[1742809232217,0.2388026,87451.0,87450.0,0.22091423]
[1742809232412,0.2388026,87451.0,87450.0,0.35019423]
[1742809233076,0.2388026,87451.0,87450.0,0.35015423]
[1742809235296,0.2388026,87451.0,87450.0,0.22091423]
[1742809235495,0.2388026,87451.0,87450.0,0.35015423]
[1742809239084,0.2273686,87451.0,87450.0,0.35015423]
[1742809239287,0.0011696,87451.0,87450.0,0.57885623]
[1742809239506,0.0011696,87451.0,87450.0,0.35015423]
[1742809239711,0.0011696,87451.0,87450.0,0.57885623]
[1742809240145,0.0001696,87451.0,87450.0,0.57785623]
[1742809240450,0.0001696,87451.0,87450.0,0.58929123]
[1742809240660,0.0001696,87451.0,87450.0,0.59329123]
[1742809241628,0.0001696,87451.0,87450.0,0.64129123]
[1742809241823,0.0001696,87451.0,87450.0,0.72389123]
[1742809243843,0.0001696,87451.0,87450.0,0.75824923]
[1742809244243,0.0001696,87451.0,87450.0,0.75724923]
[1742809244541,0.0001696,87451.0,87450.0,0.75824923]
[1742809244996,0.0001696,87451.0,87450.0,1.17637883]
[1742809246016,0.0001696,87451.0,87450.0,1.17337883]
[1742809246348,0.0001696,87451.0,87450.0,1.17637883]
[1742809249547,0.0001696,87451.0,87450.0,1.17337883]
[1742809249956,0.0001696,87451.0,87450.0,1.17237883]
[1742809250308,0.0001696,87451.0,87450.0,1.17437883]
[1742809250640,0.0001696,87451.0,87450.0,1.17937883]
[1742809252865,0.0001696,87451.0,87450.0,1.74821883]
[1742809253868,0.0001696,87451.0,87450.0,1.78390059]
[1742809254064,0.0002096,87451.0,87450.0,1.74821883]
[1742809254834,0.0002096,87451.0,87450.0,1.74621883]
[1742809255007,0.0002096,87451.0,87450.0,1.78489281]
[1742809255211,0.0002096,87451.0,87450.0,1.77989281]
[1742809255410,0.0002096,87451.0,87450.0,1.75021883]
[1742809255944,0.0002096,87451.0,87450.0,1.7646656]
[1742809256703,0.0002096,87451.0,87450.0,1.80032554]
[1742809258159,0.0001696,87469.0,87468.0,0.228655]
[1742809258313,0.0001696,87469.0,87468.0,0.47743003]
[1742809259423,0.0001696,87469.0,87468.0,0.47943003]
[1742809259615,0.0001696,87469.0,87468.0,0.99755963]
[1742809260080,0.0001696,87469.0,87468.0,1.00899163]
[1742809261200,0.1982192,87471.0,87470.0,0.228649]
[1742809261404,0.1982192,87471.0,87470.0,0.34822403]
[1742809262191,0.1982192,87471.0,87470.0,0.44822403]
[1742809262593,0.1982192,87471.0,87470.0,0.44922403]
[1742809263443,0.1982192,87471.0,87470.0,0.34973503]
[1742809263638,0.4268662,87471.0,87470.0,0.34973503]
[1742809263855,0.4269062,87471.0,87470.0,0.34973503]
[1742809264810,0.4383382,87471.0,87470.0,0.34973503]
[1742809265163,0.1982592,87471.0,87470.0,0.34973503]
[1742809265661,0.4269062,87471.0,87470.0,0.34973503]
[1742809266350,0.1982592,87471.0,87470.0,0.34973503]
[1742809266832,0.4269062,87471.0,87470.0,0.34973503]
[1742809267864,0.1982592,87471.0,87470.0,0.34973503]
[1742809268070,0.4383382,87471.0,87470.0,0.34973503]
[1742809269653,0.4383382,87471.0,87470.0,0.22057503]
[1742809269858,0.4383382,87471.0,87470.0,0.34973503]
[1742809274163,0.4417682,87471.0,87470.0,0.34973503]
[1742809274592,0.4419378,87471.0,87470.0,0.34973503]
[1742809274808,0.5171378,87471.0,87470.0,0.34973503]
[1742809275027,0.5171378,87471.0,87470.0,0.22057503]
[1742809275363,0.5171378,87471.0,87470.0,0.24973503]
[1742809276187,0.8171378,87471.0,87470.0,0.24973503]
[1742809283280,0.5018588,87471.0,87470.0,0.47838403]
[1742809283476,0.2018588,87471.0,87470.0,0.24973503]
[1742809283707,0.4305058,87471.0,87470.0,0.24973503]
[1742809283909,0.4419378,87471.0,87470.0,0.24973503]
[1742809284687,0.4419378,87471.0,87470.0,0.12057503]
[1742809284888,0.4419378,87471.0,87470.0,0.24973503]
[1742809286691,0.4419378,87471.0,87470.0,0.25007423]
[1742809289923,0.2018588,87471.0,87470.0,0.47872323]
[1742809290097,0.2018588,87471.0,87470.0,0.25007423]
[1742809290328,0.4419378,87471.0,87470.0,0.25007423]
[1742809291227,0.4419378,87471.0,87470.0,1.10525523]
[1742809291228,0.2018588,87471.0,87470.0,1.10525523]
[1742809291371,0.2018588,87471.0,87470.0,1.13960523]
[1742809293030,0.2018588,87471.0,87470.0,1.14060523]
[1742809294007,0.2018588,87471.0,87470.0,1.13960523]
[1742809294408,0.2018588,87471.0,87470.0,1.14360523]
[1742809294949,0.2018588,87471.0,87470.0,1.56173483]
[1742809297801,0.2018588,87471.0,87470.0,1.5851366]
[1742809298185,0.2018588,87471.0,87470.0,1.4559766]
[1742809298411,0.2018588,87471.0,87470.0,1.5850966]
[1742809298595,0.4419378,87471.0,87470.0,1.1695956]
[1742809298766,0.4419378,87471.0,87470.0,1.2643656]
[1742809299766,0.4419378,87471.0,87470.0,1.1352456]
[1742809300108,0.4419378,87471.0,87470.0,1.23696383]
[1742809300317,0.4419378,87471.0,87470.0,1.23796383]
[1742809300759,0.4419378,87471.0,87470.0,0.81983423]
[1742809301749,0.4305058,87471.0,87470.0,0.81983423]
[1742809301945,0.4419378,87471.0,87470.0,0.81983423]
[1742809304610,0.4419378,87471.0,87470.0,0.81979423]
[1742809308702,0.4419378,87471.0,87470.0,0.81779423]
[1742809309121,0.4419378,87471.0,87470.0,0.81979423]
[1742809309334,0.4305058,87471.0,87470.0,0.81979423]
[1742809309946,0.4419378,87471.0,87470.0,0.81979423]
[1742809313869,0.2018588,87471.0,87470.0,0.81979423]
[1742809314856,0.4305058,87471.0,87470.0,0.81979423]
[1742809315628,0.4419378,87471.0,87470.0,0.81979423]
[1742809316686,0.4419378,87471.0,87470.0,0.69071423]
[1742809316863,0.4419378,87471.0,87470.0,0.81979423]
[1742809317460,0.4419378,87471.0,87470.0,0.69071423]
[1742809317638,0.4419378,87471.0,87470.0,0.81979423]
[1742809323382,0.4305058,87471.0,87470.0,0.81979423]
[1742809323732,0.4419378,87471.0,87470.0,0.81979423]
[1742809323925,0.4419378,87471.0,87470.0,0.69071423]
[1742809324129,0.4419378,87471.0,87470.0,0.81979423]
[1742809327212,0.4419378,87471.0,87470.0,0.69071423]
[1742809327417,0.75647865,87471.0,87470.0,0.69071423]
[1742809327690,0.87937865,87471.0,87470.0,0.1314192]
[1742809327825,0.540084,87469.0,87468.0,0.0003392]
[1742809328047,0.55462485,87469.0,87468.0,0.11991423]
[1742809328252,0.55462485,87469.0,87468.0,0.0003392]
[1742809328863,0.63542485,87469.0,87468.0,0.0003392]
[1742809329105,0.63542485,87469.0,87468.0,0.1294192]
[1742809329487,0.63542485,87469.0,87468.0,0.1304192]
[1742809330857,0.63542485,87469.0,87468.0,0.1294192]
[1742809331055,0.63542485,87469.0,87468.0,0.0003392]
[1742809331257,0.63542485,87469.0,87468.0,0.1294192]
[1742809339162,0.55462485,87469.0,87468.0,0.1294192]
[1742809345089,0.55462485,87469.0,87468.0,0.24899423]
[1742809348471,0.55462485,87469.0,87468.0,0.1294192]
[1742809355536,0.55462485,87469.0,87468.0,0.0003392]
[1742809355731,0.55462485,87469.0,87468.0,0.1294192]
[1742809359237,0.63382485,87469.0,87468.0,0.0003392]
[1742809359441,0.63382485,87469.0,87468.0,0.1294192]
[1742809360518,0.63482485,87469.0,87468.0,0.1294192]
[1742809361031,0.63382485,87469.0,87468.0,0.1294192]
[1742809361427,0.63482485,87469.0,87468.0,0.1294192]
[1742809371132,0.240128,87453.0,87452.0,0.56872]
[1742809371352,0.25466885,87453.0,87452.0,0.68829503]
[1742809372543,0.25466885,87453.0,87452.0,0.81737503]
[1742809373428,0.25466885,87453.0,87452.0,0.68829503]
[1742809373571,0.25466885,87453.0,87452.0,0.81833503]
[1742809374005,0.25466885,87453.0,87452.0,0.24961503]
[1742809381321,0.25466885,87453.0,87452.0,0.24978463]
[1742809403930,0.25466885,87453.0,87452.0,0.12074463]
[1742809404139,0.25466885,87453.0,87452.0,0.24978463]
[1742809413374,0.25466885,87453.0,87452.0,0.12074463]
[1742809413593,0.25466885,87453.0,87452.0,0.24974463]
[1742809414173,0.25466885,87453.0,87452.0,0.12074463]
[1742809414379,0.25466885,87453.0,87452.0,0.24974463]
[1742809417049,0.25466885,87453.0,87452.0,0.24874463]
[1742809417197,0.25466885,87453.0,87452.0,0.24974463]
[1742809417401,0.25566885,87453.0,87452.0,0.24974463]
[1742809419903,0.55566885,87453.0,87452.0,6e-07]
[1742809420103,0.55566885,87453.0,87431.0,0.0457]
[1742809420104,0.011436,87436.0,87423.0,0.078539]
[1742809420305,0.55471485,87436.0,87423.0,0.000339]
[1742809421463,0.55471485,87436.0,87435.0,36.7343859]
[1742809422875,0.55471485,87436.0,87435.0,36.7353859]
[1742809423405,0.55471485,87436.0,87435.0,36.7343859]
[1742809423804,0.55571485,87436.0,87435.0,36.7343859]
[1742809424037,0.55571485,87436.0,87435.0,36.6053859]
[1742809424181,0.55571485,87436.0,87435.0,36.7343859]
[1742809426559,0.60351485,87436.0,87435.0,35.5609949]
[1742809427093,0.60351485,87436.0,87435.0,35.0397179]
[1742809427308,1.54212885,87436.0,87435.0,33.9620899]
[1742809427513,0.97736285,87436.0,87435.0,33.9620899]
[1742809427908,0.98036285,87436.0,87435.0,32.8745199]
[1742809428114,0.98036285,87436.0,87435.0,32.3396259]
[1742809428540,0.68181485,87436.0,87435.0,32.3396259]
[1742809428738,0.68381485,87436.0,87435.0,32.3396259]
[1742809432663,0.68415425,87436.0,87435.0,32.3396259]
[1742809440158,0.70206324,87436.0,87435.0,32.3396259]
[1742809441081,0.69855595,87436.0,87435.0,32.3396259]
[1742809441842,0.62225595,87436.0,87435.0,32.3396259]
[1742809447314,1.84669095,87436.0,87435.0,32.3396259]
[1742809447546,2.48326598,87436.0,87435.0,32.3396259]
[1742809447797,2.02627199,87436.0,87435.0,32.3396259]
[1742809447997,1.85361499,87436.0,87435.0,32.3396259]
[1742809448374,1.85161499,87436.0,87435.0,32.3396259]
[1742809448577,1.85461499,87436.0,87435.0,32.3396259]
[1742809448802,1.85161499,87436.0,87435.0,32.3396259]
[1742809449208,1.85661499,87436.0,87435.0,32.3396259]
[1742809449736,1.85361499,87436.0,87435.0,32.3396259]
[1742809450143,1.85661499,87436.0,87435.0,32.3396259]
[1742809450581,1.85661499,87436.0,87435.0,31.27667594]
[1742809450717,1.97534156,87436.0,87435.0,29.60654994]
[1742809450913,1.97534156,87436.0,87435.0,27.94305498]
[1742809450914,1.8745248,87436.0,87435.0,27.94305498]
[1742809451314,1.8745248,87436.0,87435.0,27.90868402]
[1742809451796,1.8745248,87436.0,87435.0,27.87431306]
[1742809451980,1.8695248,87436.0,87435.0,27.87431306]
[1742809452201,1.8695248,87436.0,87435.0,27.8399421]
[1742809452390,1.8745248,87436.0,87435.0,27.8399421]
[1742809453514,1.86543222,87436.0,87435.0,27.8399421]
[1742809454276,1.87686822,87436.0,87435.0,27.8399421]
[1742809455099,1.87386822,87436.0,87435.0,27.8399421]
[1742809455299,1.87886822,87436.0,87435.0,27.8399421]
[1742809461035,1.99844325,87436.0,87435.0,27.8399421]
[1742809461408,1.87886822,87436.0,87435.0,27.8399421]
[1742809465114,1.86432737,87436.0,87435.0,27.8399421]
[1742809472513,1.26617522,87436.0,87435.0,27.8399421]
[1742809472920,4.30285922,87436.0,87435.0,27.8399421]
[1742809473482,4.43189922,87436.0,87435.0,27.8399421]
[1742809474203,4.41400122,87436.0,87435.0,27.8399421]
[1742809474432,4.23631462,87436.0,87435.0,27.8399421]
[1742809474858,4.19873762,87436.0,87435.0,27.8399421]
[1742809478928,4.2124162,87436.0,87435.0,27.8399421]
[1742809480075,4.19873762,87436.0,87435.0,27.8399421]
[1742809481454,4.06969762,87436.0,87435.0,27.8399421]
[1742809481757,4.19873762,87436.0,87435.0,27.8399421]
[1742809483574,1.39001762,87436.0,87435.0,27.8399421]
[1742809483774,4.81768362,87436.0,87435.0,27.8399421]
[1742809483974,4.77157262,87436.0,87435.0,27.8399421]
[1742809485255,4.89114765,87436.0,87435.0,27.8399421]
[1742809485683,4.77157262,87436.0,87435.0,27.8399421]
[1742809485884,4.69247262,87436.0,87435.0,27.8399421]
[1742809486114,4.36175762,87436.0,87435.0,27.8399421]
[1742809486513,4.35146862,87436.0,87435.0,27.8399421]
[1742809488009,4.35146862,87436.0,87435.0,27.26695737]
[1742809488223,4.35146862,87436.0,87435.0,26.90215127]
[1742809488436,4.35146862,87436.0,87435.0,26.82114127]
[1742809489040,4.35146862,87436.0,87435.0,26.67252127]
[1742809491317,4.35146862,87436.0,87435.0,26.09953654]
[1742809492066,4.34646862,87436.0,87435.0,26.09953654]
[1742809492389,4.35146862,87436.0,87435.0,26.03979654]
[1742809492593,4.32847462,87436.0,87435.0,26.03979654]
[1742809492802,3.77155262,87436.0,87435.0,26.03979654]
[1742809493583,3.77155262,87436.0,87435.0,25.98291654]
[1742809493797,3.77155262,87436.0,87435.0,25.95421654]
[1742809494808,3.72375262,87436.0,87435.0,25.95421654]
[1742809498026,3.72375262,87436.0,87435.0,25.91892654]
[1742809498319,3.72375262,87436.0,87435.0,25.89173654]
[1742809499394,1.26311762,87436.0,87435.0,25.89173654]
[1742809499601,4.46517462,87436.0,87435.0,25.89173654]
[1742809500107,4.42723062,87436.0,87435.0,25.89173654]
[1742809500303,4.31172962,87436.0,87435.0,25.89173654]
[1742809500483,4.29994562,87436.0,87435.0,25.89173654]
[1742809505806,4.29994562,87436.0,87435.0,25.84890654]
[1742809506589,4.29994562,87436.0,87435.0,21.69508961]
[1742809507625,3.77383862,87436.0,87435.0,21.64134962]
[1742809507829,3.14432562,87436.0,87435.0,21.64134962]
[1742809508033,0.43614921,87436.0,87435.0,21.64134962]
[1742809508237,0.43614921,87436.0,87435.0,21.71814962]
[1742809508238,0.4182394,87436.0,87435.0,21.71814962]
[1742809508490,0.4182394,87436.0,87435.0,21.76514962]
[1742809508852,0.7182394,87436.0,87435.0,21.76514962]
[1742809509017,0.4132394,87436.0,87435.0,21.76514962]
[1742809509467,0.42778025,87436.0,87435.0,21.76514962]
[1742809509794,0.72278025,87436.0,87435.0,21.76514962]
[1742809509999,0.96295425,87436.0,87435.0,21.76514962]
[1742809510212,1.94553925,87436.0,87435.0,21.64134962]
[1742809510663,2.98770528,87436.0,87435.0,21.64134962]
[1742809510667,3.01270528,87436.0,87435.0,21.64134962]
[1742809510820,2.88676228,87436.0,87435.0,21.64134962]
[1742809511014,1.84938528,87436.0,87435.0,21.64134962]
[1742809511247,1.8672959,87436.0,87435.0,21.64134962]
[1742809511444,1.3303379,87436.0,87435.0,21.64134962]
[1742809511617,1.1104399,87436.0,87435.0,21.64134962]
[1742809512034,1.2747949,87436.0,87435.0,21.64134962]
[1742809513459,1.2497949,87436.0,87435.0,21.64134962]
[1742809513644,1.2747949,87436.0,87435.0,21.64134962]
[1742809517692,1.2497949,87436.0,87435.0,21.64134962]
[1742809518902,1.1104399,87436.0,87435.0,21.64134962]
[1742809519235,1.5816009,87436.0,87435.0,21.64134962]
[1742809519447,1.49772945,87436.0,87435.0,21.64134962]
[1742809519650,1.30236836,87436.0,87435.0,21.64134962]
[1742809524265,1.30270756,87436.0,87435.0,21.64134962]
[1742809524827,1.18313253,87436.0,87435.0,21.64134962]
[1742809525044,0.94295853,87436.0,87435.0,21.64134962]
[1742809525230,1.18313253,87436.0,87435.0,21.64134962]
[1742809525805,1.16522191,87436.0,87435.0,21.64134962]
[1742809528420,1.11120891,87436.0,87435.0,21.64134962]
[1742809528827,1.12911936,87436.0,87435.0,21.64134962]
[1742809531071,1.1251742,87436.0,87435.0,21.64134962]